fUSD/lending_fUSD_20250403
["ID","MTS","AMOUNT","RATE_DAILY","PERIOD"]
[357054473,1743655523986,-300.0,0.00014999,2]
[357054474,1743655524011,-300.0,0.00014999,2]
[357054475,1743655524039,-179650.95411151,0.00015,2]
[357054476,1743655529299,-15000.0,0.00015,2]
[357054477,1743655535138,-100000.0,0.00015,2]
[357054478,1743655544830,-200000.0,0.00015,2]
[357054479,1743655563442,-35541.2024,0.000149,2]
[357054480,1743655563472,-4458.7976,0.00015,2]
[357054481,1743655618724,-1798.79684578,0.000149,2]
[357054482,1743655618751,-35164.26414814,0.0001499,2]
[357054483,1743655618778,-370.65505588,0.00014999,2]
[357054484,1743655618808,-12666.2839502,0.00015,2]
[357054485,1743655627345,400.0,0.000147,5]
[357054486,1743655629139,-1441.1016097,0.00015,2]
[357054487,1743655629462,900.0,0.000148,5]
[357054488,1743655631565,1400.0,0.000149,5]
[357054489,1743655645350,-1450.3479,0.000149,2]
[357054490,1743655645373,-1993.4708,0.000149,2]
[357054491,1743655645396,-4477.97279367,0.000149,2]
[357054492,1743655645417,-277.294372,0.00014925,2]
[357054493,1743655645441,-9052.96688701,0.00015,2]
[357054494,1743655651096,-12684.07793791,0.00015,2]
[357054495,1743655672656,719.0959,0.000149,2]
[357054496,1743655696037,-2648.12631351,0.00014999,2]
[357054497,1743655696067,-150.0,0.00014999,2]
[357054498,1743655696089,-2648.12631351,0.00015,2]
[357054499,1743655696100,-150.0,0.00015,2]
[357054500,1743655696111,-14403.74737298,0.00015,2]
[357054501,1743655696635,194.0274156,0.000149,2]
[357054502,1743655740492,11612.267,0.000149,2]
[357054503,1743655767878,1413.4103,0.000149,2]
[357054504,1743655832381,-188.18152798,0.0001499,2]
[357054505,1743655832392,-12060.25307786,0.00015,2]
[357054506,1743655832673,-10904.15802534,0.00015,2]
[357054507,1743655832688,-8217.59609124,0.00015,2]
[357054508,1743655832701,-5984.5947902,0.00015,2]
[357054510,1743655832714,-6127.228,0.00015,2]
[357054512,1743655832727,-3253.93499041,0.00015,2]
[357054530,1743655838497,-28481.28535744,0.00015,2]
[357054565,1743655840886,-645.22182974,0.00015,2]
[357054566,1743655840918,-485.0,0.00015,2]
[357054567,1743655840929,-836.4131454,0.00015,2]
[357054568,1743655840949,-8009.97879594,0.00015,2]
[357054570,1743655841352,-480316.65870462,0.00015,2]
[357054571,1743655841366,-142598.892,0.00015,2]
[357054572,1743655841380,-18783.83166582,0.00015,2]
[357054626,1743655875995,223.8709,0.000149,2]
[357054633,1743655922498,350.0,0.00015,12]
[357054634,1743655924730,10411.02211956,0.000149,2]
[357054635,1743655967612,3200.7886,0.000149,2]
[357054636,1743655993047,187.9057,0.000149,2]
[357054637,1743656009051,-150.0,0.00014999,2]
[357054638,1743656009080,-39850.0,0.00015,2]
[357054639,1743656050929,1500.0,0.00021918,20]
[357054640,1743656089653,15243.549,0.000149,2]
[357054641,1743656108700,1980.4009,0.000149,2]
[357054642,1743656120445,150.98617533,0.000149,2]
[357054649,1743656128307,13814.7789797,0.00032,120]
[357054650,1743656132365,4030.17551433,0.000149,2]
[357054651,1743656167943,1254.5681,0.000149,2]
[357054652,1743656186588,4039.8374,0.000149,2]
[357054653,1743656228500,663.00851678,0.000149,2]
[357054654,1743656263900,6153.8552,0.000149,2]
[357054655,1743656284187,10281.0672,0.000149,2]
[357054656,1743656308711,1384.1299,0.000149,2]
[357054657,1743656310649,390.428,0.000147,2]
[357054658,1743656337577,571.21,0.000149,2]
[357054659,1743656386309,150.0,0.00034623,30]
[357054667,1743656535191,13439.84488845,0.000149,2]
[357054668,1743656606692,408.32891504,0.000149,2]
[357054669,1743656623502,4413.97479771,0.000149,2]
[357054670,1743656757723,4000.7006,0.000149,2]
[357054671,1743656784238,2000.0,8.1e-05,2]
[357054672,1743656791353,1631.5469572,0.000149,2]
[357054673,1743656832123,-1180.73264196,0.000149,2]
[357054674,1743656834145,-218.32500084,0.000149,2]
[357054675,1743656834167,-166.47560564,0.0001499,2]
[357054676,1743656834188,-4440.14195928,0.0001499,2]
[357054677,1743656834210,-188.18152798,0.0001499,2]
[357054678,1743656834232,-150.0,0.00014999,2]
[357054679,1743656834256,-300.0,0.00014999,2]
[357054680,1743656834494,-7600.07019197,0.00015,2]
[357054681,1743656835690,300.0,0.000148,5]
[357054682,1743656837796,700.0,0.000149,5]
[357054683,1743656848101,-12686.4625509,0.00015,2]
[357054684,1743656849143,-941.3030809,0.00015,2]
[357054729,1743656950803,-150.0,0.00014999,2]
[357054730,1743656950829,-455563.0,0.00015,2]
[357054733,1743656962115,-4521.3476,0.00015,2]
[357054766,1743657010857,228.03251169,0.00015,13]
[357054768,1743657031497,-2507.43057068,0.00015,2]
[357054769,1743657031508,-8168.5008118,0.00015,2]
[357054770,1743657031605,-1253.38970622,0.00015,2]
[357054771,1743657031683,-493.5826747,0.00015,2]
[357054772,1743657031826,-611.05,0.00015,2]
[357054780,1743657037475,-1151.7298276,0.00015,2]
[357054781,1743657037606,-6346.80758099,0.00015,2]
[357054815,1743657045490,-1699.5919492,0.00015,2]
[357054816,1743657045502,-313.06330969,0.00015,2]
[357054817,1743657045699,-6136.8892724,0.00015,2]
[357054818,1743657045754,-864.53248379,0.00015,2]
[357054819,1743657045812,-496.302152,0.00015,2]
[357054820,1743657045871,-2357.74936703,0.00015,2]
[357054821,1743657045882,-8731.48722339,0.00015,2]
[357054838,1743657117064,-214.16636734,0.000149,2]
[357054839,1743657122207,350.0,0.00014912,12]
[357054840,1743657147105,-152.91151117,0.000149,2]
[357054841,1743657165857,379.761893,0.00014825,2]
[357054842,1743657298901,163.25,0.0002601,120]
[357054843,1743657299127,163.25,0.00031212,120]
[357054844,1743657310269,150.98995775,0.000148,2]
[357054846,1743657430708,-350.0,0.0001535,12]
[357054847,1743657603157,-150.0,0.00014899,2]
[357054848,1743657603181,-2.92472965,0.000149,2]
[357054849,1743657624353,-300.0,0.00016389,12]
[357054850,1743657628734,-50.0,0.00016389,12]
[357054851,1743657628769,-250.0,0.00016389,12]
[357054852,1743657812316,1774.29,0.00013699,2]
[357054853,1743657812663,1774.29,0.00013699,2]
[357054854,1743657813061,1774.29,0.00013699,2]
[357054855,1743657813536,1774.29,0.00013699,2]
[357054856,1743657813923,1774.29,0.00013699,2]
[357054857,1743657814249,1774.29,0.00013699,2]
[357054858,1743657814636,1774.29,0.00013699,2]
[357054859,1743657814975,1774.29,0.00013699,2]
[357054860,1743657815341,1774.29,0.00013699,2]
[357054861,1743657815686,1774.29,0.00013699,2]
[357054862,1743657816005,1774.29,0.00013699,2]
[357054863,1743657816362,1774.29,0.00013699,2]
[357054864,1743657816861,1774.29,0.00013699,2]
[357054865,1743657817208,1774.29,0.00013699,2]
[357054866,1743657817514,1774.29,0.00013699,2]
[357054867,1743657819076,1774.29,0.00013699,2]
[357054868,1743657819445,1774.29,0.00013699,2]
[357054869,1743657820100,1774.29,0.00013699,2]
[357054870,1743657820303,1774.29,0.00013699,2]
[357054871,1743657820709,1774.38134722,0.00013699,2]
[357054872,1743657839075,-100.0,0.00016389,12]
[357054873,1743657839096,-200.0,0.00016389,12]
[357054874,1743657848221,-150.0,0.00016389,12]
[357054875,1743657902670,-150.0,0.00014899,2]
[357054876,1743657902694,-150.0,0.00014899,2]
[357054877,1743657963858,-200.0,0.00014899,2]
[357054879,1743658019153,-50.0,0.00014899,2]
[357054880,1743658019176,-819.66378536,0.000149,2]
[357054881,1743658022624,-150.0,0.00014899,2]
[357054884,1743658025092,-150.0,0.00014899,2]
[357054885,1743658025116,-4289.37811897,0.000149,2]
[357054886,1743658035138,-551.01276628,0.000149,2]
[357054887,1743658035162,-1614.03849567,0.000149,2]
[357054888,1743658035186,-12652.79576118,0.000149,2]
[357054889,1743658035208,-419.0,0.000149,2]
[357054890,1743658035230,-258.30530926,0.000149,2]
[357054891,1743658035252,-800.76888985,0.000149,2]
[357054892,1743658046276,500.0,0.000148,5]
[357054893,1743658048373,1000.0,0.000149,5]
[357054894,1743658052235,-1561.74965319,0.000149,2]
[357054895,1743658115123,-619.0,0.000149,2]
[357054897,1743658141827,-1396.24545696,0.000149,2]
[357054898,1743658141855,-314.4161,0.000149,2]
[357054899,1743658141883,-693.33844304,0.000149,2]
[357054900,1743658189025,-885.76505696,0.000149,2]
[357054901,1743658189054,-1156.2196,0.000149,2]
[357054903,1743658189087,-791.1345142,0.000149,2]
[357054911,1743658231639,-1052.65995075,0.000149,2]
[357054916,1743658231818,-1408.38516504,0.000149,2]
[357054917,1743658231829,-1343.02500153,0.000149,2]
[357054918,1743658231936,-232.99863395,0.000149,2]
[357054919,1743658231946,-250.0,0.0001495,2]
[357054920,1743658231957,-500.0,0.00014973,2]
[357054921,1743658231966,-138.64314071,0.0001499,2]
[357054922,1743658232008,-18.88899011,0.0001499,2]
[357054923,1743658232018,-1055.01525992,0.00015,2]
[357054924,1743658232029,-3654.10655004,0.00015,2]
[357054925,1743658232040,-6617.25393517,0.00015,2]
[357054926,1743658232052,-16493.30338663,0.00015,2]
[357054933,1743658237605,-278.35824588,0.00015,2]
[357054934,1743658237617,-3600.0,0.00015,2]
[357054935,1743658237629,-3684.07404606,0.00015,2]
[357054936,1743658237641,-1378.62714229,0.00015,2]
[357054937,1743658237653,-1102.48008342,0.00015,2]
[357054938,1743658237682,-8303.6999,0.000149,2]
[357054939,1743658237691,-18533.91726279,0.00015,2]
[357054940,1743658237703,-4850.43578301,0.00015,2]
[357054941,1743658237715,-3211.91999948,0.00015,2]
[357054942,1743658237730,-1325.6707824,0.00015,2]
[357054943,1743658237742,-5672.28725146,0.00015,2]
[357054944,1743658237754,-378.00513087,0.00015,2]
[357054945,1743658237804,-1144.63046961,0.00015,2]
[357054946,1743658238030,-1810.71380085,0.00015,2]
[357054947,1743658238291,-3989.05327913,0.00015,2]
[357054948,1743658238303,-2559.33589369,0.00015,2]
[357054967,1743658239830,-500.0,0.00015,2]
[357054969,1743658239841,-9291.12151354,0.00015,2]
[357054983,1743658240008,-801.47236212,0.00015,2]
[357054984,1743658240020,-8930.68132519,0.00015,2]
[357054985,1743658240076,-602.76063078,0.00015,2]
[357054986,1743658240087,-2276.90767204,0.00015,2]
[357054987,1743658240098,-1714.05964372,0.00015,2]
[357054988,1743658240136,-413.15347707,0.00015,2]
[357054989,1743658240148,-2866.63339524,0.00015,2]
[357054990,1743658240160,-6330.10437218,0.00015,2]
[357054991,1743658240205,-1040.86171865,0.00015,2]
[357054992,1743658240330,-516.6106185,0.000149,2]
[357054993,1743658240340,-789.11125312,0.00015,2]
[357054994,1743658240352,-1185.76552155,0.00015,2]
[357054996,1743658240459,-0.0012453,0.00015,2]
[357054997,1743658240471,-1234.95194934,0.00015,2]
[357055004,1743658242725,-12477.80729397,0.00015,2]
[357055005,1743658242737,-5681.31679619,0.00015,2]
[357055006,1743658242778,-96.62930952,0.00015,2]
[357055007,1743658242789,-489.51305808,0.00015,2]
[357055017,1743658243744,-6597.416152,0.00015,2]
[357055018,1743658245793,-7734.78716531,0.00015,2]
[357055019,1743658245894,-502.00081645,0.00015,2]
[357055020,1743658245905,-646.85139686,0.00015,2]
[357055021,1743658245925,-8100.00029957,0.00015,2]
[357055022,1743658245990,-30574.29758093,0.00015,2]
[357055024,1743658546954,577.21036658,0.00014,2]
[357055025,1743658609743,1379.64432586,0.00014999,5]
[357055026,1743658804660,-150.0,0.00014899,2]
[357055027,1743658804686,-4.28186428,0.000149,2]
[357055028,1743658909988,327.19062252,0.000148,2]
[357055029,1743659252122,-1453.17543682,0.000149,2]
[357055030,1743659253100,-11859.62777297,0.000149,2]
[357055031,1743659255444,400.0,0.000147,5]
[357055032,1743659257546,900.0,0.000148,5]
[357055033,1743659259670,1300.0,0.000149,5]
[357055034,1743659275380,500.0,0.00032,120]
[357055035,1743659288608,183.438661,7.945e-05,2]
[357055036,1743659317417,-488.37409021,0.000149,2]
[357055037,1743659317446,-339.0004,0.000149,2]
[357055038,1743659317477,-265.9975,0.000149,2]
[357055039,1743659317508,-6971.9758,0.000149,2]
[357055040,1743659317537,-155.773,0.000149,2]
[357055041,1743659317567,-222.1777,0.000149,2]
[357055042,1743659317596,-150.98617533,0.000149,2]
[357055043,1743659317625,-315.0683,0.000149,2]
[357055044,1743659317656,-1693.85399029,0.000149,2]
[357055045,1743659317692,-10008.88643812,0.000149,2]
[357055046,1743659317723,-594.32051771,0.000149,2]
[357055047,1743659317757,-1212.29113903,0.000149,2]
[357055048,1743659342319,-11051.58105684,0.000149,2]
[357055049,1743659342378,-10526.89415102,0.000149,2]
[357055050,1743659357319,500.0,0.00032,120]
[357055051,1743659361115,-4521.350932,0.000149,2]
[357055054,1743659432559,-1818.0785068,0.000149,2]
[357055055,1743659432601,-20.80667886,0.000149,2]
[357055056,1743659432611,-326.66313204,0.000149,2]
[357055057,1743659432620,-159.17867154,0.000149,2]
[357055058,1743659432629,-500.0,0.00014973,2]
[357055059,1743659432639,-1494.0,0.00015,2]
[357055060,1743659432648,-5418.72341987,0.00015,2]
[357055068,1743659437904,-829.36323944,0.00015,2]
[357055069,1743659437916,-778.63676056,0.00015,2]
[357055070,1743659437960,-175884.78664992,0.00015,2]
[357055071,1743659438018,-8031.59785108,0.00015,2]
[357055072,1743659438076,-1431.78816892,0.00015,2]
[357055087,1743659440137,-309.90335189,0.00015,2]
[357055088,1743659440251,-1036.09664811,0.00015,2]
[357055089,1743659440260,-574.47236882,0.00015,2]
[357055090,1743659440419,-5904.70881,0.00015,2]
[357055091,1743659440431,-2707.32107086,0.00015,2]
[357055094,1743659444075,-1000.04621678,0.00015,2]
[357055098,1743659444208,-13438.44192988,0.00015,2]
[357055099,1743659444219,-4430.0000001,0.00015,2]
[357055101,1743659445187,-2268.0001,0.00015,2]
[357055114,1743659445834,-4574.1924469,0.00015,2]
[357055115,1743659445944,-1150.00001,0.00015,2]
[357055116,1743659445979,-318.33091079,0.00015,2]
[357055117,1743659446017,-1983.90169072,0.00015,2]
[357055118,1743659446030,-438.48,0.00015,2]
[357055119,1743659446132,-416400.11352104,0.00015,2]
[357055120,1743659446142,-614536.46772921,0.00015,2]
[357055121,1743659446152,-565199.98112701,0.00015,2]
[357055122,1743659446162,-252.33604889,0.00015442,2]
[357055123,1743659446172,-500.0,0.00015865,2]
[357055124,1743659446182,-500.0,0.00016105,2]
[357055125,1743659446192,-200.0,0.00016389,2]
[357055126,1743659446202,-250.0,0.00016389,2]
[357055127,1743659446212,-250.0,0.0001639,2]
[357055128,1743659446222,-250.0,0.0001639,2]
[357055129,1743659446232,-1537.98,0.00016398,2]
[357055130,1743659446242,-549.9115301,0.00016512,2]
[357055131,1743659446252,-6108.5620574,0.00016523,2]
[357055132,1743659446262,-2621.4352409,0.00016523,2]
[357055133,1743659446271,-200.0,0.00016553,2]
[357055134,1743659446281,-506.0,0.00016767,2]
[357055135,1743659446290,-300.0,0.000168,2]
[357055136,1743659446300,-2751.0,0.00017067,2]
[357055137,1743659446309,-250.0,0.00017205,2]
[357055138,1743659446319,-23900.0,0.00017283,2]
[357055139,1743659446328,-1038.17,0.00017449,2]
[357055140,1743659446337,-709.49,0.00017506,2]
[357055141,1743659446347,-2312.56,0.00017584,2]
[357055142,1743659446356,-29745.3229822,0.00017678,2]
[357055143,1743659446367,-151.0,0.00017678,2]
[357055144,1743659446376,-157.262537,0.00017678,2]
[357055145,1743659446385,-151.871808,0.00017678,2]
[357055146,1743659446394,-500.0,0.00018124,2]
[357055147,1743659446403,-150.0,0.00018225,2]
[357055148,1743659446413,-228.26,0.00018237,2]
[357055149,1743659446422,-200.0,0.00018352,2]
[357055150,1743659446431,-2158.18,0.00018396,2]
[357055151,1743659446441,-2158.18,0.00018401,2]
[357055152,1743659446451,-2158.18,0.00018406,2]
[357055153,1743659446460,-2158.18,0.00018411,2]
[357055154,1743659446470,-2158.18,0.00018416,2]
[357055155,1743659446480,-2158.18,0.00018421,2]
[357055156,1743659446489,-2158.18,0.00018426,2]
[357055157,1743659446499,-1852.42,0.00018427,2]
[357055158,1743659446508,-3980.9,0.00018427,2]
[357055159,1743659446517,-151.0,0.00018427,2]
[357055160,1743659446526,-151.0,0.00018427,2]
[357055161,1743659446536,-151.0,0.00018427,2]
[357055162,1743659446544,-151.0,0.00018427,2]
[357055163,1743659446554,-163.211562,0.00018427,2]
[357055164,1743659446563,-151.973675,0.00018427,2]
[357055165,1743659446572,-151.0,0.00018427,2]
[357055166,1743659446581,-158.434415,0.00018427,2]
[357055167,1743659446591,-161.794107,0.00018427,2]
[357055168,1743659446600,-159.170524,0.00018427,2]
[357055169,1743659446610,-151.0,0.00018427,2]
[357055170,1743659446619,-151.0,0.00018427,2]
[357055171,1743659446628,-159.29345,0.00018427,2]
[357055172,1743659446637,-151.0,0.00018427,2]
[357055173,1743659446647,-159.228303,0.00018427,2]
[357055174,1743659446656,-153.166173,0.00018427,2]
[357055175,1743659446665,-227.810512,0.00018427,2]
[357055176,1743659446674,-227.810512,0.00018427,2]
[357055177,1743659446683,-151.0,0.00018427,2]
[357055178,1743659446692,-151.0,0.00018427,2]
[357055179,1743659446701,-151.0,0.00018427,2]
[357055180,1743659446710,-151.0,0.00018427,2]
[357055181,1743659446719,-154.843526,0.00018427,2]
[357055182,1743659446728,-151.354708,0.00018427,2]
[357055183,1743659446737,-2158.18,0.0001843,2]
[357055184,1743659446747,-2158.18,0.00018435,2]
[357055185,1743659446756,-151.0,0.0001844,2]
[357055186,1743659446765,-151.0,0.0001844,2]
[357055187,1743659446775,-151.0,0.0001844,2]
[357055188,1743659446784,-151.0,0.0001844,2]
[357055189,1743659446793,-152.759858,0.0001844,2]
[357055190,1743659446802,-179.511883,0.0001844,2]
[357055191,1743659446811,-2158.18,0.0001844,2]
[357055192,1743659446820,-2158.18,0.00018445,2]
[357055193,1743659446829,-2158.18,0.0001845,2]
[357055194,1743659446838,-2158.18,0.00018455,2]
[357055195,1743659446848,-2158.18,0.00018459,2]
[357055196,1743659446857,-159.68,0.00018464,2]
[357055197,1743659446866,-2158.18,0.00018464,2]
[357055198,1743659446875,-2158.18,0.00018469,2]
[357055199,1743659446885,-2158.18,0.00018474,2]
[357055200,1743659446894,-2158.18,0.00018479,2]
[357055201,1743659446903,-2158.18,0.00018484,2]
[357055202,1743659446912,-2158.18,0.00018489,2]
[357055203,1743659446921,-663.39,0.00018516,2]
[357055204,1743659446931,-151.72,0.0001852,2]
[357055205,1743659446940,-150.0,0.00018552,7]
[357055206,1743659446949,-51347.58,0.00018554,2]
[357055207,1743659446958,-151.0,0.00018554,2]
[357055208,1743659446968,-151.0,0.00018554,2]
[357055209,1743659446978,-151.857842,0.00018554,2]
[357055210,1743659446987,-159.740868,0.00018554,2]
[357055211,1743659446997,-151.0,0.00018554,2]
[357055212,1743659447007,-151.0,0.00018554,2]
[357055213,1743659447016,-151.0,0.00018554,2]
[357055214,1743659447025,-151.0,0.00018554,2]
[357055215,1743659447034,-204.819122,0.00018554,2]
[357055216,1743659447043,-189.380859,0.00018554,2]
[357055217,1743659447053,-152.648307,0.00018554,2]
[357055218,1743659447062,-227.810512,0.00018554,2]
[357055219,1743659447071,-227.810512,0.00018554,2]
[357055220,1743659447080,-152.14013,0.00018554,2]
[357055221,1743659447090,-159.60565,0.00018554,2]
[357055222,1743659447099,-158.191643,0.00018554,2]
[357055223,1743659447112,-159.206266,0.00018554,2]
[357055224,1743659447122,-184.53,0.00018653,2]
[357055225,1743659447131,-1537.98,0.00018662,2]
[357055226,1743659447140,-7143.89232104,0.00019,2]
[357055227,1743659447150,-302.87680558,0.00019,2]
[357055228,1743659447165,-167.881855,0.00019,2]
[357055229,1743659447175,-151.0,0.00019,2]
[357055230,1743659447184,-151.0,0.00019,2]
[357055231,1743659447194,-287.48213,0.00019,2]
[357055232,1743659447203,-3729.92,0.00019329,2]
[357055233,1743659447340,-1000.0,0.00019529,2]
[357055234,1743659447360,-688.08,0.00019691,2]
[357055235,1743659447370,-159.74,0.00019729,2]
[357055236,1743659447380,-2695.0,0.00019734,2]
[357055237,1743659447390,-152.441595,0.00019876,2]
[357055238,1743659447401,-151.0,0.00019876,2]
[357055239,1743659447411,-1215.15858252,0.0002,4]
[357055240,1743659447421,-151.77,0.0002,2]
[357055241,1743659447431,-151.77,0.0002,2]
[357055242,1743659447441,-151.77,0.0002,2]
[357055243,1743659447451,-151.77,0.0002,2]
[357055244,1743659447461,-151.77,0.0002,2]
[357055245,1743659447471,-166.722577,0.00020028,2]
[357055246,1743659447481,-151.479291,0.00020028,2]
[357055247,1743659447492,-154.874626,0.00020127,2]
[357055248,1743659447502,-165.902384,0.00020127,2]
[357055249,1743659447512,-151.0,0.00020127,2]
[357055250,1743659447521,-151.0,0.00020127,2]
[357055251,1743659447531,-151.0,0.00020147,2]
[357055252,1743659447540,-151.0,0.00020147,2]
[357055253,1743659447550,-151.0,0.00020147,2]
[357055254,1743659447560,-195.683405,0.00020147,2]
[357055255,1743659447569,-500.0,0.00020173,2]
[357055256,1743659447578,-817.75,0.00020285,2]
[357055257,1743659447588,-155.832678,0.0002045,2]
[357055258,1743659447599,-1000.0,0.00020452,2]
[357055259,1743659447608,-29745.3229822,0.00020456,2]
[357055260,1743659447618,-151.0,0.00020456,2]
[357055261,1743659447627,-151.0,0.00020456,2]
[357055262,1743659447636,-153.219535,0.00020456,2]
[357055263,1743659447646,-169.423081,0.00020456,2]
[357055264,1743659447655,-156.47764,0.00020456,2]
[357055265,1743659447665,-227.810512,0.00020456,2]
[357055266,1743659447674,-227.810512,0.00020456,2]
[357055267,1743659447683,-1116.36,0.00020611,2]
[357055268,1743659447693,-1116.36,0.00020616,2]
[357055269,1743659447703,-1116.36,0.00020622,2]
[357055270,1743659447712,-1116.36,0.00020627,2]
[357055271,1743659447721,-1116.36,0.00020633,2]
[357055272,1743659447731,-1116.36,0.00020638,2]
[357055273,1743659447740,-1116.36,0.00020643,2]
[357055274,1743659447750,-1116.36,0.00020649,2]
[357055275,1743659447760,-1116.36,0.00020654,2]
[357055276,1743659447769,-1116.36,0.0002066,2]
[357055277,1743659447779,-1116.36,0.00020665,2]
[357055278,1743659447789,-1116.36,0.00020671,2]
[357055279,1743659447798,-1116.36,0.00020676,2]
[357055280,1743659447808,-151.0,0.00020676,2]
[357055281,1743659447817,-151.0,0.00020676,2]
[357055282,1743659447826,-1116.36,0.00020681,2]
[357055283,1743659447835,-1116.36,0.00020687,2]
[357055284,1743659447844,-1116.36,0.00020692,2]
[357055285,1743659447854,-1116.36,0.00020698,2]
[357055286,1743659447863,-1116.36,0.00020703,2]
[357055287,1743659447872,-1116.36,0.00020708,2]
[357055288,1743659447884,-1116.36,0.00020714,2]
[357055289,1743659447899,-163.25,0.00020808,2]
[357055290,1743659447915,-1537.98,0.00020926,2]
[357055291,1743659447932,-314.94,0.00020951,2]
[357055292,1743659447950,-7782.86,0.00020951,2]
[357055293,1743659447961,-164.01,0.00021315,2]
[357055294,1743659447973,-160.38,0.00021327,2]
[357055295,1743659447983,-500.0,0.00021344,2]
[357055296,1743659447995,-163.808238,0.000215,2]
[357055297,1743659448004,-151.0,0.000215,2]
[357055298,1743659448015,-224.97852802,0.00021516,2]
[357055299,1743659448024,-1000.0,0.00021584,2]
[357055300,1743659448034,-150.0,0.00021917,2]
[357055301,1743659448043,-1000.0,0.0002197,2]
[357055302,1743659448053,-500.0,0.00022377,2]
[357055303,1743659448063,-501.23431182,0.00022408,2]
[357055304,1743659448073,-500.0,0.00022408,2]
[357055305,1743659448083,-326.66313201,0.00022607,2]
[357055306,1743659448092,-500.0,0.0002268,2]
[357055307,1743659448102,-506.75246483,0.0002268,2]
[357055308,1743659448114,-500.43886011,0.0002268,2]
[357055309,1743659448124,-501.28566036,0.00022954,2]
[357055310,1743659448133,-1537.98,0.0002319,2]
[357055311,1743659448143,-151.0,0.00023224,7]
[357055312,1743659448153,-151.779584,0.00023224,7]
[357055313,1743659448162,-151.0,0.00023233,7]
[357055314,1743659448171,-175.244543,0.00023233,7]
[357055315,1743659448182,-227.810512,0.00023233,7]
[357055316,1743659448193,-227.810512,0.00023233,7]
[357055317,1743659448202,-29745.3229822,0.00023233,2]
[357055318,1743659448212,-1288.186,0.00023269,2]
[357055319,1743659448222,-2041.0,0.00023269,2]
[357055320,1743659448231,-574.0,0.00023269,2]
[357055321,1743659448240,-1369.59,0.00023269,2]
[357055322,1743659448250,-1439.078,0.00023269,2]
[357055323,1743659448259,-1277.869,0.00023269,2]
[357055324,1743659448269,-789.0,0.00023269,2]
[357055325,1743659448278,-4095.0,0.00023269,2]
[357055326,1743659448287,-545.617,0.00023269,2]
[357055327,1743659448297,-912.619,0.00023269,2]
[357055328,1743659448306,-3951.0,0.00023269,2]
[357055329,1743659448316,-152.88,0.00023269,2]
[357055330,1743659448326,-1017.0,0.00023269,2]
[357055331,1743659448336,-150.0,0.00023269,2]
[357055332,1743659448344,-1118.0,0.00023269,2]
[357055333,1743659448354,-150.0,0.00023287,2]
[357055334,1743659448364,-161.62,0.00023836,2]
[357055335,1743659448374,-152.768479,0.00024,7]
[357055336,1743659448384,-1000.0,0.00024411,2]
[357055337,1743659448393,-1038.17,0.00024428,2]
[357055338,1743659448402,-150.0,0.00024657,2]
[357055339,1743659448412,-300.41,0.00024658,2]
[357055340,1743659448421,-151.77,0.0002479,2]
[357055341,1743659448431,-151.675985,0.000248,7]
[357055342,1743659448441,-151.0,0.000248,7]
[357055343,1743659448451,-151.0,0.000248,7]
[357055344,1743659448460,-154.92898,0.000248,7]
[357055345,1743659448470,-151.0,0.000248,7]
[357055346,1743659448480,-250449.835242,0.000248,2]